fUSD/lending_fUSD_20240101
["ID","MTS","AMOUNT","RATE_DAILY","PERIOD"]
[309791560,1704132632835,-298.44,0.00034435,2]
[309791561,1704132632844,-930.58,0.00034457,2]
[309791562,1704132632853,-163.45,0.00034516,15]
[309791563,1704132632863,-386.53,0.00034639,2]
[309791564,1704132632872,-157.98,0.0003465,2]
[309791565,1704132632882,-520.0,0.00034658,2]
[309791566,1704132632891,-2000.0,0.00034811,2]
[309791567,1704132632901,-500.0,0.00034948,2]
[309791568,1704132632910,-179.62,0.00035032,2]
[309791569,1704132632919,-250.0,0.00035102,2]
[309791570,1704132632928,-156.54,0.00035167,2]
[309791571,1704132632938,-166.26782337,0.0003518,2]
[309791572,1704132632947,-1900.0,0.000355,3]
[309791573,1704132632956,-14891.0,0.000355,3]
[309791574,1704132632965,-152.42,0.00035616,2]
[309791575,1704132632974,-386.53,0.00035618,2]
[309791576,1704132632983,-156.54,0.00035777,2]
[309791577,1704132632992,-480.0,0.00035863,2]
[309791578,1704132633001,-9251.29,0.00035948,2]
[309791579,1704132633010,-4582.67309957,0.00036089,2]
[309791580,1704132633024,-150.0,0.00036106,2]
[309791581,1704132633033,-117207.5113,0.0003611,2]
[309791582,1704132633042,-250.274,0.0003611,2]
[309791583,1704132633049,-2986.1024,0.0003611,2]
[309791584,1704132633058,-342.39,0.0003611,2]
[309791585,1704132633067,-166.26782337,0.00036124,2]
[309791586,1704132633077,-845.72,0.00036126,2]
[309791587,1704132633087,-543.13930105,0.00036145,2]
[309791588,1704132633097,-200.0,0.00036187,2]
[309791589,1704132633107,-2279.84461188,0.000362,2]
[309791590,1704132633116,-179.62,0.00036328,2]
[309791591,1704132633125,-156.54,0.00036388,2]
[309791592,1704132633134,-284.96,0.00036453,2]
[309791593,1704132633143,-2066.57864314,0.00036478,2]
[309791594,1704132633153,-167.91,0.00036588,2]
[309791595,1704132633162,-386.53,0.00036596,2]
[309791596,1704132633172,-4239.89,0.00036635,2]
[309791597,1704132633181,-1067.5962,0.00036821,2]
[309791598,1704132633191,-417.584,0.00036821,2]
[309791599,1704132633200,-2263.0,0.00036856,2]
[309791600,1704132633209,-643.6820982,0.000369,2]
[309791601,1704132633219,-643.68209804,0.000369,2]
[309791602,1704132633229,-643.68209804,0.000369,2]
[309791603,1704132633239,-643.68209804,0.000369,2]
[309791604,1704132633249,-643.68209804,0.000369,2]
[309791605,1704132633259,-156.54,0.00036999,2]
[309791606,1704132633268,-643.68209804,0.00037034,2]
[309791607,1704132633277,-166.26782337,0.00037068,2]
[309791608,1704132633288,-152.42,0.000371,2]
[309791609,1704132633297,-158.5,0.00037105,2]
[309791610,1704132633307,-643.68209804,0.00037238,2]
[309791611,1704132633316,-4582.67309955,0.00037431,2]
[309791612,1704132633325,-643.68209804,0.00037443,2]
[309791613,1704132633335,-153.84,0.00037481,2]
[309791614,1704132633345,-1000.0,0.000375,7]
[309791615,1704132633354,-167.0,0.00037531,2]
[309791616,1704132633363,-386.53,0.00037575,2]
[309791617,1704132633373,-155.14916852,0.0003762,2]
[309791618,1704132633383,-179.62,0.00037625,2]
[309791619,1704132633392,-643.68209804,0.00037648,2]
[309791620,1704132633402,-825.3549028,0.000377,2]
[309791621,1704132633411,-3365.3481,0.000378,2]
[309791622,1704132633421,-800.0,0.00037808,2]
[309791623,1704132633430,-643.68209804,0.00037853,2]
[309791624,1704132633439,-8618.94625835,0.0003787,2]
[309791625,1704132633449,-200.0,0.00037894,10]
[309791626,1704132633459,-1346.07706545,0.000379,8]
[309791627,1704132633469,-383.92115462,0.000379,2]
[309791628,1704132633478,-4059.6395,0.00037933,2]
[309791629,1704132633488,-7750.15383311,0.00037998,4]
[309791630,1704132633497,-216.30742409,0.00037998,4]
[309791631,1704132633507,-3518.27355317,0.00037998,4]
[309791632,1704132633517,-219.34689421,0.00037998,4]
[309791633,1704132633527,-3750.97478209,0.00037998,4]
[309791634,1704132633537,-2555.14006847,0.00037998,4]
[309791635,1704132633547,-500.75992043,0.00037998,4]
[309791636,1704132633557,-150.01,0.00037999,2]
[309791637,1704132633567,-1552.32755653,0.00037999,2]
[309791638,1704132633576,-100000.0,0.00038,8]
[309791639,1704132633586,-167444.7498853,0.00038,7]
[309791640,1704132633596,-1784.59,0.00038,5]
[309791641,1704132633605,-1000.0,0.00038,8]
[309791642,1704132633615,-159.19243644,0.00038,4]
[309791643,1704132633626,-1803.56,0.00038,5]
[309791644,1704132633635,-1793.68,0.00038,5]
[309791645,1704132633645,-200.0,0.00038,2]
[309791646,1704132633655,-1968.06946982,0.00038,2]
[309791647,1704132633664,-13099.0427908,0.00038,2]
[309791648,1704132633674,-3000.0,0.00038,2]
[309791649,1704132633683,-166.26782337,0.00038012,2]
[309791650,1704132633692,-643.68209804,0.00038057,2]
[309791651,1704132633701,-153.0,0.000381,2]
[309791652,1704132633711,-1000.0,0.000381,7]
[309791653,1704132633720,-1113.77,0.00038126,2]
[309791654,1704132633730,-940.27012915,0.00038176,2]
[309791655,1704132633739,-206.89666977,0.0003821,10]
[309791656,1704132633748,-643.68209804,0.00038262,2]
[309791657,1704132633758,-500.0,0.00038301,7]
[309791658,1704132633767,-1113.77,0.00038314,2]
[309791659,1704132633776,-158.98,0.00038392,2]
[309791660,1704132633786,-1000.0,0.000384,7]
[309791661,1704132633795,-211.54694715,0.00038406,4]
[309791662,1704132633804,-203.98984461,0.00038406,4]
[309791663,1704132633813,-155.0,0.00038406,4]
[309791664,1704132633822,-155.0,0.00038406,4]
[309791665,1704132633831,-643.68209804,0.00038467,2]
[309791666,1704132633841,-1000.0,0.000385,8]
[309791667,1704132633850,-358.0,0.000385,120]
[309791668,1704132633859,-1113.77,0.00038502,2]
[309791669,1704132633868,-1845.53,0.00038533,5]
[309791670,1704132633878,-386.53,0.00038553,2]
[309791671,1704132633887,-1789.7,0.00038568,5]
[309791672,1704132633897,-152.42,0.00038584,2]
[309791673,1704132633906,-394.21317746,0.00038598,4]
[309791674,1704132633915,-194.49248251,0.00038598,4]
[309791675,1704132633924,-358.82440257,0.00038598,4]
[309791676,1704132633934,-3038.19626055,0.00038598,4]
[309791677,1704132633943,-1039.76978638,0.00038598,4]
[309791678,1704132633951,-156.95760381,0.00038598,4]
[309791679,1704132633961,-199.17836,0.00038599,5]
[309791680,1704132633969,-1844.54,0.000386,5]
[309791681,1704132633978,-1828.59,0.000386,5]
[309791682,1704132633987,-1787.36,0.000386,5]
[309791683,1704132633997,-153.84,0.00038617,2]
[309791684,1704132634007,-1803.81,0.00038647,5]
[309791685,1704132634016,-1824.79,0.00038652,5]
[309791686,1704132634025,-643.68209804,0.00038672,2]
[309791687,1704132634035,-241.0,0.00038685,2]
[309791688,1704132634046,-1113.77,0.00038689,2]
[309791689,1704132634056,-99.85685006,0.00038717,2]
[309791690,1704132634095,-185.10314994,0.00038717,2]
[309791691,1704132634105,-310.54472949,0.00038749,8]
[309791692,1704132634116,-219.01413227,0.00038749,9]
[309791693,1704132634126,-348.85742159,0.00038749,9]
[309791694,1704132634136,-185.6563576,0.00038749,8]
[309791695,1704132634146,-263.84079874,0.00038749,9]
[309791696,1704132634156,-186.03,0.00038836,2]
[309791697,1704132634165,-4582.67309955,0.00038852,2]
[309791698,1704132634175,-295.77156185,0.00038876,2]
[309791699,1704132634189,-347.91053619,0.00038876,2]
[309791700,1704132634199,-34.9597594,0.00038877,2]
[309791701,1704132634228,-690.78500141,0.00038877,2]
[309791702,1704132634241,-388.02523919,0.00038877,2]
[309791703,1704132634251,-18.32765644,0.00038921,2]
[309791707,1704132638439,-161.29234356,0.00038921,2]
[309791708,1704132638450,-746.32615394,0.00038927,10]
[309791709,1704132638460,-727.59930557,0.00038927,10]
[309791710,1704132638469,-683.6837402,0.00038927,10]
[309791711,1704132638479,-883.03552619,0.00038927,10]
[309791712,1704132638489,-400.21866721,0.00038927,9]
[309791713,1704132638499,-1068.34236815,0.00038927,10]
[309791714,1704132638509,-166.26782337,0.00038956,2]
[309791715,1704132638519,-1000.0,0.00038987,5]
[309791716,1704132638528,-2759.63407181,0.00038987,28]
[309791717,1704132638666,-451.57864314,0.00038987,28]
[309791718,1704132638949,-1616.56374508,0.00038987,28]
[309791731,1704132641256,-1034.88503768,0.0003892,2]
[309791732,1704132641265,-1217.7029412,0.00038987,28]
[309791733,1704132641286,-431.68406691,0.00038987,28]
[309791734,1704132641297,-340.21593309,0.0003899,2]
[309791735,1704132641702,-154.0,0.000384,2]
[309791736,1704132641711,-179.78406691,0.0003899,2]
[309791737,1704132641720,-1038.58311571,0.0003899,3]
[309791738,1704132641733,-2490.53561742,0.0003899,3]
[309791740,1704132642008,-1470.88126687,0.0003899,3]
[309791741,1704132642016,-98603.61693106,0.00039,9]
[309791742,1704132642028,-1396.38306894,0.00039,9]
[309791743,1704132642038,-599.27979208,0.00039,2]
[309791744,1704132642049,-799.01994824,0.00039,2]
[309791745,1704132642061,-625.95650581,0.00039,2]
[309791746,1704132642070,-396.62200174,0.00039,9]
[309791784,1704132643431,-603.37799826,0.00039,9]
[309791785,1704132643441,-265.90634235,0.00039,4]
[309791786,1704132643451,-150.0,0.00039,2]
[309791787,1704132643460,-200.0,0.00039,5]
[309791788,1704132643470,-1000.0,0.00039,7]
[309791789,1704132643480,-350.94,0.00039,2]
[309791790,1704132643490,-1346.07706538,0.00039032,9]
[309791791,1704132643500,-1113.77,0.00039065,2]
[309791792,1704132643511,-207.0,0.00039075,21]
[309791793,1704132643521,-643.68209804,0.00039081,2]
[309791795,1704132643531,-405.0,0.000391,5]
[309791796,1704132643541,-315.29,0.000391,2]
[309791797,1704132643550,-167.0,0.00039121,2]
[309791798,1704132643560,-3273.95329598,0.00039188,4]
[309791799,1704132643602,-790.17881049,0.00039188,4]
[309791800,1704132643613,-1049.76244674,0.00039188,4]
[309791801,1704132643625,-3021.12527992,0.00039188,4]
[309791816,1704132646348,-689.92335846,0.00038955,2]
[309791818,1704132646357,-49.53133707,0.00039188,4]
[309791820,1704132646369,-8504.00915989,0.00039188,4]
[309791826,1704132646412,-1309.22088046,0.00039188,4]
[309791828,1704132646424,-599.27979208,0.00039188,4]
[309791829,1704132646922,-6933.99919236,0.00039188,4]
[309791830,1704132646933,-34385.6,0.00039188,4]
[309791886,1704133831538,-1583.7014695,0.00025598,2]
[309791887,1704133831551,-533.48129115,0.00025598,2]
[309791888,1704133831567,-279.77,0.00025598,2]
[309791889,1704133831579,-783.08887197,0.00025598,2]
[309791890,1704133831589,-155.0,0.00025598,2]
[309791891,1704133831601,-1042.36979142,0.00025599,2]
[309791892,1704133831611,-695.17387652,0.00025599,2]
[309791893,1704133831620,-206.0,0.00025613,2]
[309791894,1704133831630,-2604.93925,0.00026608,2]
[309791895,1704133831639,-450.0,0.00027,3]
[309791896,1704133831648,-163.01454435,0.000289,2]
[309791897,1704133831830,-500.0,0.00029,3]
[309791898,1704133831840,-1000.0,0.0003,2]
[309791899,1704133831849,-499.99,0.0003,2]
[309791900,1704133831859,-155.0,0.0003,2]
[309791901,1704133831868,-172.31,0.00030016,2]
[309791902,1704133831877,-163.01454432,0.0003165,2]
[309791903,1704133831886,-1000.0,0.00034399,4]
[309791904,1704133831896,-163.01454432,0.000344,2]
[309791905,1704133831905,-1161.16322455,0.00035,2]
[309791906,1704133831914,-558.42453916,0.00035145,4]
[309791907,1704133831923,-268.81,0.00035434,2]
[309791908,1704133831933,-150.99,0.00035894,2]
[309791909,1704133831942,-2652.6456,0.0003601,2]
[309791910,1704133831952,-888.88888,0.00036898,4]
[309791911,1704133831961,-444.44444,0.00036998,2]
[309791912,1704133831970,-666.13983086,0.00037,7]
[309791913,1704133831979,-206.0,0.00037075,21]
[309791914,1704133831988,-509.98394608,0.00037098,4]
[309791915,1704133831997,-213.36,0.00037118,2]
[309791916,1704133832007,-163.01454432,0.0003715,2]
[309791917,1704133832016,-257.68,0.00037167,2]
[309791918,1704133832026,-444.44444,0.00037198,4]
[309791919,1704133832034,-160.59,0.00037237,15]
[309791920,1704133832044,-162.63,0.00037292,2]
[309791921,1704133832053,-152.42,0.00037333,2]
[309791922,1704133832062,-4298.96,0.00037378,2]
[309791923,1704133832071,-1000.0,0.00037385,2]
[309791924,1704133832081,-704.76,0.00037399,2]
[309791925,1704133832090,-465.29,0.00037419,2]
[309791926,1704133832100,-268.81,0.00037698,2]
[309791927,1704133832110,-158.5,0.00037884,2]
[309791928,1704133832119,-172.0,0.00038,2]
[309791929,1704133832128,-200.0,0.00038067,10]
[309791930,1704133832138,-257.68,0.00038145,2]
[309791931,1704133832147,-3581.63,0.00038319,2]
[309791932,1704133832157,-1000.0,0.0003863,30]
[309791933,1704133832166,-1000.0,0.0003863,30]
[309791934,1704133832177,-1000.0,0.0003863,30]
[309791935,1704133832187,-1000.0,0.0003863,30]
[309791936,1704133832196,-1000.0,0.0003863,30]
[309791937,1704133832206,-1000.0,0.0003863,30]
[309791938,1704133832216,-330.0,0.0003863,30]
[309791939,1704133832226,-1067.88,0.00038678,2]
[309791940,1704133832235,-200.0,0.00038712,2]
[309791941,1704133832247,-256.17096399,0.00038749,8]
[309791942,1704133832256,-188.04031267,0.00038767,9]
[309791943,1704133832265,-18527.91683451,0.00038917,2]
[309791944,1704133832274,-18509.6050515,0.00038927,10]
[309791945,1704133832285,-1322.84623936,0.00038927,9]
[309791946,1704133832296,-691.23435263,0.00038927,9]
[309791947,1704133832306,-1164.81160298,0.00038992,4]
[309791948,1704133832315,-500.0,0.00038999,2]
[309791949,1704133832325,-500.0,0.00038999,2]
[309791950,1704133832334,-500.0,0.00038999,2]
[309791951,1704133832343,-500.0,0.00038999,2]
[309791952,1704133832354,-500.0,0.00038999,2]
[309791953,1704133832364,-500.0,0.00038999,2]
[309791954,1704133832374,-500.0,0.00038999,2]
[309791955,1704133832382,-500.0,0.00038999,2]
[309791956,1704133832392,-500.0,0.00038999,2]
[309791957,1704133832403,-500.0,0.00038999,2]
[309791958,1704133832412,-500.0,0.00038999,2]
[309791959,1704133832422,-500.0,0.00038999,2]
[309791960,1704133832433,-500.0,0.00038999,2]
[309791961,1704133832444,-500.0,0.00038999,2]
[309791962,1704133832453,-500.0,0.00038999,2]
[309791963,1704133832463,-500.0,0.00038999,2]
[309791964,1704133832473,-500.0,0.00038999,2]
[309791965,1704133832483,-500.0,0.00038999,2]
[309791966,1704133832492,-150.0,0.00039,2]
[309791967,1704133832501,-500.0,0.00039,2]
[309791968,1704133832512,-500.0,0.00039,2]
[309791969,1704133832521,-500.0,0.00039,2]
[309791970,1704133832530,-500.0,0.00039,2]
[309791971,1704133832540,-500.0,0.00039,2]
[309791972,1704133832549,-1424.97645405,0.00039,2]
[309791973,1704133832558,-245.71359517,0.00039,2]
[309791974,1704133832567,-186.03,0.00039031,2]
[309791975,1704133832576,-213.36,0.00039048,2]
[309791976,1704133832586,-392.535,0.00039096,2]
[309791977,1704133832595,-268.0,0.000391,2]
[309791978,1704133832608,-4971.11370673,0.00039105,4]
[309791979,1704133832617,-459.94890564,0.0003912,2]
[309791980,1704133832626,-3000.0,0.00039121,2]
[309791981,1704133832636,-257.68,0.00039124,2]
[309791982,1704133832645,-160.46157824,0.00039187,4]
[309791983,1704133832655,-1968.06946982,0.00039188,2]
[309791984,1704133832664,-200.0,0.00039188,2]
[309791985,1704133832674,-163.90740112,0.00039188,4]
[309791986,1704133832683,-155.66517634,0.00039188,4]
[309791987,1704133832693,-944.63399286,0.00039188,4]
[309791988,1704133832702,-187.59002129,0.00039188,4]
[309791989,1704133832712,-4000.0,0.00039188,2]
[309791990,1704133832721,-155.20850777,0.00039196,4]
[309791991,1704133832731,-5217.9769847,0.00039196,2]
[309791992,1704133832740,-310.61673811,0.00039198,4]
[309791993,1704133832749,-1434.0,0.00039198,2]
[309791994,1704133832759,-290.65278431,0.00039223,2]
[309791995,1704133832768,-150.0,0.00039237,2]
[309791996,1704133832778,-1113.77,0.00039253,2]
[309791997,1704133832787,-548.59,0.0003926,2]
[309791998,1704133832796,-815.0,0.000393,2]
[309791999,1704133832805,-150.0,0.00039321,2]
[309792000,1704133832816,-150.0,0.00039347,2]
[309792001,1704133832825,-150.0,0.00039354,2]
[309792002,1704133832834,-150.0,0.00039379,2]
[309792003,1704133832844,-377.5966,0.00039401,2]
[309792004,1704133832854,-183.0950226,0.00039408,2]
[309792005,1704133832863,-150.0,0.00039412,2]
[309792006,1704133832873,-150.0,0.00039428,2]
[309792007,1704133832883,-152.42,0.00039438,2]
[309792008,1704133832893,-150.0,0.00039446,2]
[309792009,1704133832902,-3207.87116973,0.00039471,2]
[309792010,1704133832912,-1743.43122992,0.00039472,2]
[309792011,1704133832922,-4093.455,0.00039487,4]
[309792012,1704133832931,-262.27452985,0.00039489,4]
[309792013,1704133832941,-1250.77179218,0.00039489,4]
[309792014,1704133832950,-155.0,0.00039489,4]
[309792015,1704133832959,-293.83751499,0.0003949,2]
[309792016,1704133832969,-1743.43122988,0.00039495,2]
[309792017,1704133832978,-206.89666977,0.00039498,11]
[309792018,1704133832987,-1000.0,0.000395,14]
[309792019,1704133832996,-342.0,0.000395,2]
[309792020,1704133833005,-908.6,0.000395,2]
[309792021,1704133833014,-1743.43122988,0.00039517,2]
[309792022,1704133833024,-1743.43122988,0.0003954,2]
[309792023,1704133833033,-177.74,0.00039547,2]
[309792024,1704133833043,-1743.43122988,0.00039562,2]
[309792025,1704133833052,-453.6078335,0.00039571,2]
[309792026,1704133833062,-151.2230378,0.00039571,2]
[309792027,1704133833073,-435.0000006,0.00039571,2]
[309792028,1704133833083,-14779.6242727,0.00039571,2]
[309792029,1704133833093,-504.54842906,0.00039571,2]
[309792030,1704133833102,-1719.85130259,0.00039572,4]
[309792031,1704133833112,-447.63099843,0.00039572,4]
[309792032,1704133833121,-4886.00728927,0.00039573,2]
[309792033,1704133833130,-9634.71041968,0.00039573,2]
[309792034,1704133833139,-16086.99247589,0.00039573,2]
[309792035,1704133833148,-1743.43122988,0.00039585,2]
[309792036,1704133833157,-161.231227,0.00039598,5]
[309792037,1704133833166,-1743.43122988,0.00039607,2]
[309792038,1704133833177,-1743.43122988,0.0003963,2]
[309792039,1704133833187,-151.90636917,0.00039635,2]
[309792040,1704133833197,-500.0,0.00039644,7]
[309792041,1704133833209,-1743.43122988,0.00039652,2]
[309792042,1704133833218,-1743.43122988,0.00039675,2]
[309792043,1704133833228,-161.231227,0.00039698,5]
[309792044,1704133833237,-166.0,0.00039765,5]
[309792045,1704133833248,-161.2321227,0.00039798,5]
[309792046,1704133833258,-155.0,0.00039798,4]
[309792047,1704133833275,-272.03527703,0.00039815,4]
[309792048,1704133833289,-1868.80694272,0.00039815,14]
[309792049,1704133833298,-269.52535138,0.00039815,4]
[309792050,1704133833309,-1020.8,0.00039816,7]
[309792051,1704133833318,-4091.6345019,0.0003986,13]
[309792052,1704133833328,-175.823702,0.00039873,2]
[309792053,1704133833337,-151.4,0.00039889,2]
[309792054,1704133833347,-151.4,0.00039889,2]
[309792055,1704133833357,-7500.0,0.0003989,2]
[309792056,1704133833367,-151.93457294,0.0003989,6]
[309792057,1704133833377,-8357.6131628,0.0003989,5]
[309792058,1704133833395,-224698.5722792,0.0003989,5]
[309792059,1704133833404,-181.02459183,0.0003989,2]
[309792060,1704133833413,-668.41863954,0.0003989,2]
[309792061,1704133833423,-497.84656478,0.0003989,2]
[309792062,1704133833433,-400.77302536,0.0003989,2]
[309792063,1704133833443,-615.83093782,0.0003989,2]
[309792064,1704133833453,-281.82254853,0.0003989,2]
[309792065,1704133833463,-482.94,0.0003989,2]
[309792066,1704133833473,-161.231227,0.00039898,5]
[309792067,1704133833482,-507.91312847,0.00039899,2]
[309792068,1704133833492,-12510.0,0.000399,5]
[309792069,1704133833501,-34083.44418484,0.000399,2]
[309792070,1704133833518,-900.0,0.000399,2]
[309792071,1704133833575,-22516.55581516,0.000399,2]
[309792072,1704133833584,-660.35418484,0.000399,3]
[309792073,1704133833637,-6596.92142821,0.000399,3]
[309792074,1704133833650,-10898.63686837,0.000399,3]
[309792075,1704133833659,-163.01454432,0.000399,2]
[309792076,1704133833669,-291796.58893124,0.000399,2]
[309792077,1704133833681,-24707.82542715,0.000399,2]
[309792078,1704133833693,-600.0,0.000399,2]
[309792079,1704133833705,-659.3325531,0.000399,2]
[309792080,1704133833718,-1596.403,0.000399,2]
[309792086,1704133834185,-514.40280197,0.00025597,2]
[309792088,1704133834195,-425.9797414,0.00038999,2]
[309792170,1704133837602,-74.0202586,0.00038999,2]
[309792171,1704133837611,-280.52024706,0.00038999,2]
[309792177,1704133837711,-219.47975294,0.00038999,2]
[309792178,1704133837721,-500.0,0.00038999,2]
[309792179,1704133837730,-500.0,0.00038999,2]
[309792180,1704133837739,-500.0,0.00038999,2]
[309792181,1704133837749,-500.0,0.00038999,2]
[309792182,1704133837757,-500.0,0.00038999,2]
[309792183,1704133837766,-500.0,0.00038999,2]
[309792184,1704133837775,-500.0,0.00038999,2]
[309792185,1704133837785,-500.0,0.00038999,2]
[309792186,1704133837794,-500.0,0.00038999,2]
[309792187,1704133837803,-6.52024708,0.00038999,2]
[309792188,1704133837877,-493.47975292,0.00038999,2]
[309792189,1704133837887,-500.0,0.00038999,2]
[309792190,1704133837897,-500.0,0.00038999,2]
[309792191,1704133837908,-12212.48164674,0.00039573,2]
[309792192,1704133837932,-500.0,0.00038999,2]
[309792193,1704133837942,-739.32123028,0.00039573,2]
[309792194,1704133837952,-1743.43122988,0.00039697,2]
[309792195,1704133837961,-1743.43122988,0.0003972,2]
[309792196,1704133837971,-8222.45200997,0.000399,2]
[309792197,1704133838099,-618.92108529,0.000399,2]
[309792217,1704133840962,-500.0,0.00038999,2]
[309792218,1704133840972,-500.0,0.00038999,2]
[309792219,1704133840982,-500.0,0.00038999,2]
[309792220,1704133840991,-227.07092915,0.00038999,2]
[309792221,1704133841003,-271.1878861,0.00038999,2]
[309792222,1704133841073,-1.74118475,0.00038999,2]
[309792223,1704133841082,-500.0,0.00038999,2]
[309792224,1704133841091,-500.0,0.00038999,2]
[309792225,1704133841101,-500.0,0.00038999,2]
[309792226,1704133841110,-500.0,0.00038999,2]
[309792227,1704133841119,-500.0,0.00038999,2]
[309792228,1704133841129,-155.0,0.00039598,5]
[309792230,1704133841139,-122387.60243343,0.000399,2]
[309792231,1704133841148,-55555.0,0.000399,3]
[309792232,1704133841157,-5000.0,0.000399,2]
[309792233,1704133841167,-538.13,0.0003996,7]
[309792234,1704133841176,-268.81,0.00039962,2]
[309792235,1704133841186,-155370.790295,0.00039969,5]
[309792237,1704133841196,-77685.3951474,0.0003997,5]
[309792239,1704133841206,-4281.2606665,0.00039973,2]
[309792241,1704133841215,-453.6078335,0.00039973,2]
[309792243,1704133841224,-151.2230378,0.00039973,2]
[309792245,1704133841233,-12128.585214,0.00039973,2]
[309792247,1704133841242,-77685.3951474,0.0003998,5]
[309792249,1704133841251,-47494.32932558,0.0003998,5]
[309792270,1704133842612,-500.0,0.00038999,2]
[309792271,1704133842622,-500.0,0.00038999,2]
[309792272,1704133842632,-1162.788944,0.0003998,5]
[309792273,1704133842645,-1109.68511756,0.0003998,5]
[309792274,1704133842832,-1173.06814592,0.00039742,2]
[309792277,1704133845547,-558.42453916,0.00035509,4]
[309792278,1704133845557,-570.36308396,0.00039742,2]
[309792279,1704133845567,-854.24599074,0.000399,2]
[309792280,1704133845580,-2087.47300559,0.0003998,5]
[309792281,1704133845723,-11598.3874881,0.0003998,5]
[309792282,1704133845736,-1681.11656758,0.0003998,5]
[309792283,1704133845783,-10096.39420945,0.0003998,5]
[309792284,1704133845796,-599.27979208,0.0003998,5]
[309792285,1704133845842,-578.00353116,0.0003998,5]
[309792290,1704134644358,206.0,0.00022613,2]
[309792332,1704135032013,-3109.22354636,0.00023565,2]
[309792333,1704135032026,-70.81808626,0.00023565,2]
[309792334,1704135032035,-695.17387652,0.00023566,2]
[309792335,1704135032044,-415.66803722,0.00023567,2]
[309792336,1704135032056,-98.73476475,0.00023567,2]
[309792337,1704135032065,-522.71860509,0.00023568,2]
[309792338,1704135032075,-318.53076016,0.00023568,2]
[309792340,1704135032087,-428.45187983,0.00023568,2]
[309792342,1704135032103,-295.38715143,0.00023568,2]
[309792344,1704135032112,-204.61284857,0.00023569,2]
[309792347,1704135032124,-1154.30408679,0.00023569,2]
[309792349,1704135032133,-1032.58430585,0.000236,2]
[309792351,1704135032146,-173.65853925,0.00023603,2]
[309792354,1704135032155,-450.0,0.00027,3]
[309792357,1704135032165,-150.0,0.00027396,2]
[309792359,1704135032174,-500.0,0.00029,3]
[309792361,1704135032184,-206.0,0.0002909,2]
[309792364,1704135032194,-45.48165391,0.0003,2]
[309792369,1704135032214,-586.88834609,0.0003,2]
[309792372,1704135032224,-155.0,0.00030089,2]
[309792374,1704135032234,-139.67242633,0.0003009,2]
[309792378,1704135032246,-401.23757367,0.0003009,2]
[309792379,1704135032255,-499.99,0.0003009,2]
[309792382,1704135032264,-86.22219176,0.0003009,2]
[309792387,1704135032285,-64.76780824,0.0003009,2]
[309792389,1704135032294,-681.94,0.0003089,2]
[309792392,1704135032303,-150.99,0.0003089,2]
[309792395,1704135032313,-5838.03148294,0.0003089,2]
[309792398,1704135032325,-4161.95851706,0.0003089,2]
[309792401,1704135032334,-550.0,0.00031,3]
[309792403,1704135032344,-600.0,0.00033,3]
[309792406,1704135032353,-281.52,0.00033195,2]
[309792409,1704135032362,-200.0,0.00034994,2]
[309792412,1704135032372,-326.73572381,0.00035,3]
[309792415,1704135032384,-323.26427619,0.00035,3]
[309792418,1704135032393,-356.02,0.00035107,2]
[309792421,1704135032405,-372.54,0.00035118,2]
[309792424,1704135032414,-120.27863982,0.00035127,2]
[309792427,1704135032426,-126.50136018,0.00035127,2]
[309792430,1704135032436,-425.29,0.00035129,2]
[309792431,1704135032445,-250.0,0.00035157,111]
[309792433,1704135032455,-151.81,0.00035262,2]
[309792435,1704135032464,-1443.55274874,0.00035262,2]
[309792436,1704135032475,-298.38963629,0.00035262,2]
[309792437,1704135032500,-254.09602473,0.00035262,2]